bitfinex/quotes_SOLUSD_20250219
["timestamp","ask_amount","ask_price","bid_price","bid_amount"]
[1739946144169,0.0001,167.46,167.45,222.96304648]
[1739946145206,0.0001,167.46,167.45,84.66304648]
[1739946145706,0.0001,167.46,167.45,78.69114648]
[1739946146498,0.0001,167.46,167.43,5.9726]
[1739946146700,0.0001,167.46,167.41,78.69114648]
[1739946147395,0.0001,167.46,167.41,96.94370938]
[1739946147900,0.0001,167.46,167.42,12.2792629]
[1739946148087,0.0001,167.46,167.45,12.2792629]
[1739946149707,0.0001,167.46,167.45,18.2511629]
[1739946150084,0.0001,167.46,167.45,31.66301143]
[1739946150282,0.063,167.5,167.48,20.0]
[1739946150479,0.0001,167.5,167.49,25.69111143]
[1739946150802,0.0001,167.51,167.5,13.41184853]
[1739946150985,3.964e-05,167.52,167.5,25.69111143]
[1739946151310,3.964e-05,167.52,167.51,12.2792629]
[1739946151685,3.964e-05,167.52,167.51,18.2489629]
[1739946152497,3.964e-05,167.54,167.53,20.0]
[1739946152712,3.964e-05,167.54,167.53,249.27040938]
[1739946153688,3.964e-05,167.54,167.53,255.23940938]
[1739946154886,3.964e-05,167.54,167.53,269.65125381]
[1739946155094,3.964e-05,167.54,167.53,270.65125381]
[1739946155607,3.964e-05,167.54,167.53,268.65125791]
[1739946157217,3.964e-05,167.54,167.53,255.23940938]
[1739946157517,3.964e-05,167.54,167.53,222.96014648]
[1739946157816,3.964e-05,167.54,167.53,78.69114648]
[1739946159414,3.964e-05,167.54,167.51,78.69114648]
[1739946159715,12.27930254,167.54,167.51,78.69114648]
[1739946161715,12.27930254,167.54,167.49,5.9705]
[1739946161910,12.2792629,167.53,167.49,84.66164648]
[1739946162226,12.27930254,167.54,167.49,84.66164648]
[1739946163213,3.964e-05,167.54,167.49,96.94090938]
[1739946163411,3.964e-05,167.54,167.5,12.2792629]
[1739946163808,3.964e-05,167.54,167.51,5.9697]
[1739946164429,3.964e-05,167.54,167.52,12.2792629]
[1739946164601,3.964e-05,167.54,167.53,12.2792629]
[1739946164798,3.964e-05,167.54,167.53,90.97040938]
[1739946165003,3.964e-05,167.54,167.53,78.69114648]
[1739946166915,3.964e-05,167.54,167.53,84.66014648]
[1739946167122,3.964e-05,167.54,167.53,96.93940938]
[1739946167533,3.964e-05,167.54,167.53,248.65125791]
[1739946171738,3.964e-05,167.54,167.53,235.23940938]
[1739946173306,3.964e-05,167.54,167.53,248.65125791]
[1739946174022,3.964e-05,167.54,167.53,250.65125381]
[1739946174926,3.964e-05,167.54,167.53,268.64125381]
[1739946175530,3.964e-05,167.54,167.53,250.65125381]
[1739946177326,3.964e-05,167.54,167.53,248.65125791]
[1739946179619,3.964e-05,167.54,167.53,250.65125381]
[1739946179814,3.964e-05,167.54,167.53,249.65125381]
[1739946180036,3.964e-05,167.54,167.53,248.65125791]
[1739946180653,3.964e-05,167.54,167.53,235.23940938]
[1739946182525,3.964e-05,167.54,167.53,78.69114648]
[1739946183130,3.964e-05,167.54,167.52,5.9992]
[1739946184926,3.964e-05,167.54,167.52,0.03]
[1739946186835,12.2792629,167.53,167.52,0.03]
[1739946187038,13.8509629,167.53,167.52,0.03]
[1739946192353,33.23181143,167.53,167.52,0.03]
[1739946194633,35.65930353,167.53,167.52,0.03]
[1739946194861,33.23181143,167.53,167.52,0.03]
[1739946197164,34.23181143,167.53,167.52,0.03]
[1739946197344,35.23181143,167.53,167.52,0.03]
[1739946198271,12.2792629,167.46,167.45,0.03]
[1739946199644,19.9018629,167.46,167.45,0.03]
[1739946199866,33.31371143,167.46,167.45,0.03]
[1739946200056,13.9303629,167.46,167.45,0.03]
[1739946200747,19.9018629,167.46,167.45,0.03]
[1739946202244,33.31371143,167.46,167.45,0.03]
[1739946202571,34.31371143,167.46,167.45,0.03]
[1739946203278,35.31371143,167.46,167.45,0.03]
[1739946208070,38.30688825,167.46,167.45,0.03]
[1739946210649,20.0,167.42,167.39,0.03]
[1739946210965,12.2792629,167.4,167.39,0.03]
[1739946212160,18.2529629,167.4,167.39,0.03]
[1739946212366,31.66481143,167.4,167.39,0.03]
[1739946212565,45.94407433,167.4,167.39,0.03]
[1739946213783,44.94407433,167.4,167.39,0.03]
[1739946214194,43.94407433,167.4,167.39,0.03]
[1739946214480,44.94407433,167.4,167.39,0.03]
[1739946214779,32.66481143,167.4,167.39,0.03]
[1739946215484,44.94407433,167.4,167.39,0.03]
[1739946217382,45.94407433,167.4,167.39,0.03]
[1739946217987,44.94407433,167.4,167.39,0.03]
[1739946218789,45.94407433,167.4,167.39,0.03]
[1739946219084,44.94407433,167.4,167.39,0.03]
[1739946220082,45.94407433,167.4,167.39,0.03]
[1739946220973,44.94407433,167.4,167.39,0.03]
[1739946222185,45.94407433,167.4,167.39,0.03]
[1739946222488,44.94407433,167.4,167.39,0.03]
[1739946222663,59.75498218,167.4,167.39,0.03]
[1739946223389,60.75498218,167.4,167.39,0.03]
[1739946223766,1.0,167.34,167.29,0.03]
[1739946223974,7.87388673,167.3,167.29,0.03]
[1739946225789,13.85108673,167.3,167.29,0.03]
[1739946226586,18.2910945,167.3,167.29,0.03]
[1739946227697,12.3138945,167.3,167.29,0.03]
[1739946228895,18.2910945,167.3,167.29,0.03]
[1739946230881,12.3138945,167.3,167.29,0.03]
[1739946234606,18.2910945,167.3,167.29,0.03]
[1739946236991,31.70294303,167.3,167.29,0.03]
[1739946237198,32.70294303,167.3,167.29,0.03]
[1739946237394,31.70294303,167.3,167.29,0.03]
[1739946239106,31.70294303,167.3,167.28,0.03]
[1739946239107,15.41184853,167.29,167.28,0.03]
[1739946239285,27.72574303,167.29,167.28,0.03]
[1739946240198,33.70334303,167.29,167.28,0.03]
[1739946241000,36.72827503,167.29,167.28,0.03]
[1739946241596,36.72827503,167.29,167.28,0.0001]
[1739946242999,12.3138945,167.23,167.22,0.03]
[1739946244314,18.2935945,167.23,167.22,0.03]
[1739946245925,31.70544303,167.23,167.22,0.03]
[1739946246643,27.27928369,167.23,167.22,0.03]
[1739946247634,5.9801,167.22,167.14,84.70404648]
[1739946247815,7.88773516,167.19,167.14,6.0129]
[1739946248212,7.88773516,167.2,167.14,6.0129]
[1739946248723,82.7,167.21,167.15,7.88773516]
[1739946249943,82.7,167.21,167.16,5.9822]
[1739946250354,90.58773516,167.21,167.16,5.9822]
[1739946252111,7.88773516,167.21,167.16,5.9822]
[1739946254125,7.88773516,167.21,167.14,86.60888164]
[1739946254423,7.88773516,167.21,167.15,5.9826]
[1739946254843,7.88773516,167.19,167.14,84.70404648]
[1739946255014,7.88773516,167.19,167.14,78.72114648]
[1739946255215,7.88773516,167.18,167.14,78.72114648]
[1739946255445,7.88773516,167.18,167.14,0.03]
[1739946256330,7.88773516,167.16,167.14,0.03]
[1739946256748,7.88773516,167.15,167.14,0.03]
[1739946258250,27.28218369,167.15,167.14,0.03]
[1739946260036,28.28218369,167.15,167.14,0.03]
[1739946260350,29.28218369,167.15,167.14,0.03]
[1739946263327,14.41184853,167.14,167.12,0.03]
[1739946263556,12.40773516,167.13,167.12,0.03]
[1739946263721,64.35382433,167.13,167.12,0.03]
[1739946263925,65.35382433,167.13,167.12,0.03]
[1739946264120,65.35382433,167.13,167.12,0.0001]
[1739946265949,31.80288369,167.13,167.12,0.0001]
[1739946266620,64.35382433,167.13,167.12,0.0001]
[1739946267031,63.35382433,167.13,167.12,0.0001]
[1739946267336,64.35382433,167.13,167.12,0.0001]
[1739946270457,32.80288369,167.13,167.12,0.0001]
[1739946271562,64.35382433,167.13,167.12,0.0001]
[1739946272765,65.35382433,167.13,167.12,0.0001]
[1739946273155,15.41184853,167.12,167.11,0.03]
[1739946273458,20.0,167.07,167.05,0.03]
[1739946273653,7.88773516,167.06,167.05,0.03]
[1739946274346,103.99958369,167.06,167.05,0.03]
[1739946274539,27.28538369,167.06,167.05,0.03]
[1739946274737,7.88773516,167.06,167.05,0.03]
[1739946275359,32.40773516,167.07,167.05,0.03]
[1739946275558,7.88773516,167.09,167.05,6.1858]
[1739946276267,7.88773516,167.08,167.05,6.1858]
[1739946276436,7.88773516,167.07,167.05,6.1858]
[1739946277664,7.88773516,167.08,167.05,6.1858]
[1739946278845,7.88773516,167.09,167.05,12.1718]
[1739946280336,7.88773516,167.11,167.06,1.6623]
[1739946280549,7.88773516,167.12,167.06,9.55003516]
[1739946280760,7.88773516,167.14,167.08,7.88773516]
[1739946281034,7.88773516,167.15,167.09,7.88773516]
[1739946281264,90.58773516,167.16,167.1,7.88773516]
[1739946281473,90.58773516,167.16,167.11,6.1923]
[1739946282568,7.88773516,167.17,167.11,12.176]
[1739946282762,7.88773516,167.17,167.12,1.6481]
[1739946283664,7.88773516,167.15,167.12,1.6481]
[1739946284243,7.88773516,167.16,167.12,1.6481]
[1739946285142,7.88773516,167.17,167.12,7.6316]
[1739946286749,27.88773516,167.18,167.12,15.51933516]
[1739946287061,7.88773516,167.19,167.13,7.88773516]
[1739946287266,7.88773516,167.19,167.13,86.57888164]
[1739946287472,7.88773516,167.2,167.14,7.88773516]
[1739946287645,7.88773516,167.21,167.15,7.88773516]
[1739946288259,7.88773516,167.21,167.16,5.9822]
[1739946288453,0.063,167.22,167.17,6.4658]
[1739946288661,0.063,167.22,167.18,1.6372]
[1739946290172,0.063,167.22,167.19,5.9812]
[1739946292336,0.063,167.22,167.18,1.6372]
[1739946292538,7.88773516,167.21,167.18,1.6372]
[1739946294469,7.88773516,167.2,167.18,1.6372]
[1739946294845,7.88773516,167.2,167.17,6.4658]
[1739946295068,0.063,167.22,167.17,12.4476]
[1739946295386,7.88773516,167.2,167.17,6.4658]
[1739946295557,7.88773516,167.19,167.15,78.69114648]
[1739946296150,7.88773516,167.19,167.15,84.67364648]
[1739946298175,7.88773516,167.19,167.15,78.69114648]
[1739946298381,7.88773516,167.18,167.15,78.69114648]
[1739946298564,7.88773516,167.17,167.14,1.6342]
[1739946298774,7.88773516,167.16,167.13,6.3547]
[1739946300434,7.88773516,167.17,167.13,12.338]
[1739946300677,7.88773516,167.17,167.13,6.3547]
[1739946302066,7.88773516,167.16,167.13,6.3547]
[1739946302654,7.88773516,167.15,167.1,7.5911]
[1739946302849,7.88773516,167.15,167.1,86.28224648]
[1739946303387,7.88773516,167.16,167.1,94.16998164]
[1739946303881,7.88773516,167.17,167.1,94.16998164]
[1739946304790,7.88773516,167.17,167.11,7.88773516]
[1739946304998,7.88773516,167.18,167.12,7.88773516]
[1739946306386,7.88773516,167.18,167.13,5.9833]
[1739946306898,7.88773516,167.19,167.13,5.9833]
[1739946309204,7.88773516,167.19,167.13,28.82943516]
[1739946309387,0.063,167.22,167.16,7.88773516]
[1739946309592,0.063,167.22,167.18,7.88773516]
[1739946309798,0.063,167.22,167.17,7.88773516]
[1739946310182,0.063,167.22,167.17,86.57888164]
[1739946311689,0.063,167.22,167.18,5.9815]
[1739946315511,0.063,167.22,167.18,13.86923516]
[1739946315913,0.063,167.22,167.21,7.88773516]
[1739946316405,0.063,167.22,167.21,16.00533516]
[1739946316615,0.063,167.22,167.21,8.1176]
[1739946316801,0.063,167.22,167.21,16.00533516]
[1739946317535,0.063,167.22,167.21,1.6541]
[1739946317808,0.063,167.22,167.21,7.6346]
[1739946318619,0.063,167.22,167.21,15.52233516]
[1739946319614,0.063,167.22,167.21,94.21348164]
[1739946323714,0.063,167.29,167.24,7.88773516]
[1739946323918,0.063,167.29,167.26,7.88773516]
[1739946324098,0.063,167.29,167.27,7.88773516]
[1739946325720,0.063,167.29,167.28,5.978]
[1739946326015,0.063,167.33,167.28,13.86573516]
[1739946326519,7.95073516,167.33,167.28,5.978]
[1739946326822,0.063,167.33,167.28,13.86573516]
[1739946329425,0.063,167.33,167.28,92.55688164]
[1739946331617,7.88773516,167.29,167.24,78.69114648]
[1739946331924,7.88773516,167.26,167.24,78.69114648]
[1739946332122,7.88773516,167.26,167.21,78.69114648]
[1739946332321,7.88773516,167.25,167.21,78.69114648]
[1739946332534,7.88773516,167.24,167.18,7.88773516]
[1739946332714,7.88773516,167.24,167.18,86.57888164]
[1739946333126,7.88773516,167.23,167.18,78.69114648]
[1739946333420,7.88773516,167.24,167.18,78.69114648]
[1739946333603,7.88773516,167.24,167.18,84.67254648]
[1739946334137,25.979,167.25,167.19,7.88773516]
[1739946334339,27.88773516,167.25,167.19,7.88773516]
[1739946334634,32.31765537,167.25,167.19,12.31765537]
[1739946335829,32.31765537,167.25,167.19,18.29875537]
[1739946336240,12.31765537,167.24,167.18,91.00880185]
[1739946336429,12.31765537,167.24,167.18,96.99030185]
[1739946337645,12.31765537,167.19,167.14,78.69114648]
[1739946337813,12.31765537,167.18,167.14,78.69114648]
[1739946338822,12.31765537,167.19,167.14,78.69114648]
[1739946339145,18.29865537,167.2,167.14,84.67404648]
[1739946339640,12.31765537,167.19,167.14,84.67404648]
[1739946340140,12.31765537,167.2,167.14,96.99170185]
[1739946340332,12.31765537,167.22,167.15,12.31765537]
[1739946340507,12.31765537,167.22,167.15,91.00880185]
[1739946341441,90.1859,167.23,167.16,5.9822]
[1739946341656,12.31765537,167.21,167.16,5.9822]
[1739946343054,12.31765537,167.19,167.15,78.69114648]
[1739946343220,12.31765537,167.18,167.15,78.69114648]
[1739946343520,12.31765537,167.17,167.15,78.69114648]
[1739946343820,12.31765537,167.17,167.16,0.03]
[1739946344342,12.31765537,167.2,167.16,0.03]
[1739946347125,12.31765537,167.22,167.16,0.03]
[1739946347344,12.31765537,167.22,167.16,78.72114648]
[1739946347640,18.29745537,167.23,167.16,91.03880185]
[1739946348150,12.31765537,167.23,167.16,91.03880185]
[1739946348359,12.31765537,167.24,167.18,12.31765537]
[1739946349877,12.31765537,167.24,167.18,18.29885537]
[1739946351262,12.31765537,167.25,167.19,12.31765537]
[1739946352573,12.31765537,167.25,167.2,5.9808]
[1739946352738,12.31765537,167.26,167.2,96.98960185]
[1739946354567,12.31765537,167.25,167.2,84.67194648]
[1739946356870,7.88230576,167.25,167.2,78.69114648]
[1739946357072,7.88230576,167.24,167.2,78.69114648]
[1739946357440,7.88230576,167.24,167.2,84.67174648]
[1739946357950,7.88230576,167.25,167.2,84.67174648]
[1739946360358,7.88230576,167.28,167.22,7.88230576]
[1739946360541,7.88230576,167.27,167.21,7.88230576]
[1739946360751,7.88230576,167.26,167.2,92.55405224]
[1739946361647,7.88230576,167.26,167.2,84.67174648]
[1739946361944,7.88230576,167.25,167.2,84.67174648]
[1739946362295,7.88230576,167.24,167.2,84.67174648]
[1739946363655,7.88230576,167.24,167.2,78.69114648]
[1739946363966,7.88230576,167.21,167.18,5.9812]
[1739946364659,7.88230576,167.2,167.18,5.9812]
[1739946364855,7.88230576,167.21,167.18,5.9812]
[1739946366269,7.88230576,167.21,167.17,78.69114648]
[1739946368676,7.88230576,167.21,167.18,0.03]
[1739946369687,7.88230576,167.19,167.18,0.03]
[1739946371900,13.86350576,167.19,167.18,0.03]
[1739946372263,7.88230576,167.19,167.18,0.03]
[1739946375177,13.86350576,167.19,167.18,0.03]
[1739946376399,27.27535429,167.19,167.18,0.03]
[1739946376768,29.68778701,167.19,167.18,0.03]
[1739946379691,33.41184853,167.17,167.16,0.03]
[1739946379874,45.81415429,167.17,167.16,0.03]
[1739946380591,48.45665429,167.17,167.16,0.0001]
[1739946380914,20.0,167.13,167.1,0.03]
[1739946381093,7.88230576,167.11,167.1,0.03]
[1739946381288,21.29415429,167.11,167.1,0.03]
[1739946381714,31.79815429,167.11,167.1,0.03]
[1739946386896,31.79815429,167.11,167.05,0.03]
[1739946387216,7.88230576,167.06,167.05,0.03]
[1739946387604,7.88230576,167.07,167.05,0.03]
[1739946388015,7.88230576,167.09,167.05,0.03]
[1739946388195,7.88230576,167.1,167.05,0.03]
[1739946388893,5.9826,167.15,167.06,7.88230576]
[1739946389099,7.88230576,167.12,167.07,5.9855]
[1739946389607,7.88230576,167.11,167.07,5.9855]
[1739946390002,7.88230576,167.11,167.07,84.67664648]
[1739946390322,7.88230576,167.13,167.07,92.55895224]
[1739946390555,7.88230576,167.13,167.08,1.5135]
[1739946390731,12.33421588,167.13,167.08,1.5135]
[1739946391420,12.33421588,167.13,167.08,80.20464648]
[1739946391622,12.33421588,167.15,167.09,12.0978]
[1739946391823,12.33421588,167.15,167.09,90.78894648]
[1739946392307,12.33421588,167.14,167.09,90.78894648]
[1739946393926,12.33421588,167.13,167.09,84.80424648]
[1739946394745,12.33421588,167.13,167.09,6.1131]
[1739946394916,12.33421588,167.12,167.09,6.1131]
[1739946396235,12.33421588,167.13,167.09,6.1131]
[1739946397213,12.33421588,167.13,167.09,12.0978]
[1739946399341,12.33421588,167.13,167.09,6.1131]
[1739946400043,12.33421588,167.12,167.09,6.1131]
[1739946401224,12.33421588,167.12,167.09,12.0978]
[1739946401426,12.33421588,167.13,167.09,12.0978]
[1739946405652,12.33421588,167.13,167.09,5.9847]
[1739946406662,12.33421588,167.12,167.09,5.9847]
[1739946407254,0.063,167.13,167.09,5.9847]
[1739946408451,12.39721588,167.13,167.09,5.9847]
[1739946408654,12.39721588,167.13,167.08,7.5286]
[1739946411055,0.063,167.13,167.08,19.86281588]
[1739946412567,0.063,167.13,167.08,98.55396236]
[1739946412743,0.063,167.13,167.08,94.11216302]
[1739946415653,0.063,167.13,167.09,7.89241654]
[1739946415861,0.063,167.13,167.1,5.9844]
[1739946418582,0.063,167.13,167.1,84.67554648]
[1739946427362,0.063,167.13,167.12,14.14041654]
[1739946428580,0.063,167.13,167.12,20.12411654]
[1739946429460,87.22,167.23,167.13,1.6449]
[1739946429773,4.52,167.23,167.16,7.89241654]
[1739946430084,7.89241654,167.22,167.16,7.89241654]
[1739946430778,7.89241654,167.22,167.17,5.9819]
[1739946430972,7.89241654,167.22,167.17,84.67304648]
[1739946431576,7.89241654,167.22,167.17,78.69114648]
[1739946431874,7.89241654,167.19,167.17,78.69114648]
[1739946432980,7.89241654,167.2,167.17,78.69114648]
[1739946433370,7.89241654,167.19,167.17,78.69114648]
[1739946433881,7.95541654,167.19,167.17,78.69114648]
[1739946436484,7.95541654,167.19,167.15,5.9825]
[1739946437486,0.063,167.19,167.15,5.9825]
[1739946439589,0.063,167.19,167.16,7.89241654]
[1739946439961,0.063,167.19,167.15,13.87491654]
[1739946441580,0.063,167.19,167.15,92.56606302]
[1739946441790,0.063,167.19,167.16,7.89241654]
[1739946442882,0.063,167.19,167.17,5.9819]
[1739946445294,0.063,167.19,167.17,84.67304648]
[1739946451003,0.063,167.19,167.18,7.89241654]
[1739946451206,0.063,167.19,167.18,86.58356302]
[1739946452597,0.063,167.19,167.18,92.56506302]
[1739946454796,7.95541654,167.19,167.18,78.69114648]
[1739946456497,0.063,167.19,167.18,78.69114648]
[1739946457005,0.063,167.19,167.18,84.67264648]
[1739946458083,0.063,167.19,167.18,78.69114648]
[1739946458778,7.95541654,167.19,167.18,78.69114648]
[1739946458979,7.95541654,167.19,167.13,78.72114648]
[1739946459183,7.89241654,167.15,167.13,0.03]
[1739946459685,7.89241654,167.16,167.13,0.03]
[1739946462105,0.063,167.19,167.13,0.03]
[1739946462301,7.89241654,167.18,167.13,0.03]
[1739946462894,7.95541654,167.19,167.13,7.92241654]
[1739946464004,7.95541654,167.19,167.14,5.983]
[1739946465503,7.89241654,167.17,167.13,0.03]
[1739946465710,7.89241654,167.16,167.13,0.03]
[1739946466003,6.0443,167.19,167.13,0.03]
[1739946466306,7.89241654,167.16,167.13,0.03]
[1739946466696,7.89241654,167.15,167.13,0.03]
[1739946467184,7.89241654,167.14,167.13,0.03]
[1739946468504,60.66973123,167.14,167.13,0.03]
[1739946469016,1.0,167.12,167.1,0.03]
[1739946469222,1.0,167.12,167.09,0.03]
[1739946469223,1.0,167.1,167.09,0.03]
[1739946469379,25.82426507,167.1,167.09,0.03]
[1739946471292,31.80866507,167.1,167.09,0.03]
[1739946471582,18.39681654,167.1,167.09,0.03]
[1739946474095,13.87681654,167.1,167.09,0.03]
[1739946474707,19.39584853,167.11,167.09,0.03]
[1739946474895,7.89241654,167.1,167.09,0.03]
[1739946475111,90.59241654,167.1,167.09,0.03]
[1739946475794,96.57681654,167.1,167.09,0.03]
[1739946477235,88.6844,167.1,167.09,0.03]
[1739946477552,96.57681654,167.1,167.09,0.03]
[1739946482742,109.98866507,167.1,167.09,0.03]
[1739946483058,96.57681654,167.1,167.09,0.03]
[1739946483617,90.59241654,167.1,167.09,0.03]
[1739946484050,96.57681654,167.1,167.09,0.03]
[1739946484438,90.59241654,167.1,167.09,0.03]
[1739946486259,7.89241654,167.12,167.09,0.03]
[1739946487754,7.95541654,167.16,167.1,7.89241654]
[1739946489751,0.063,167.16,167.11,13.87641654]
[1739946489931,0.063,167.16,167.11,5.984]
[1739946490444,7.95541654,167.16,167.11,5.984]
[1739946490859,7.89241654,167.15,167.11,5.984]
[1739946492263,0.063,167.16,167.09,89.67748017]
[1739946492551,7.95541654,167.16,167.1,13.87681654]
[1739946493125,0.063,167.15,167.1,13.87681654]
[1739946493326,0.063,167.15,167.1,5.9844]
[1739946494025,7.95541654,167.15,167.1,5.9844]
[1739946494265,7.89241654,167.14,167.09,84.70584648]
[1739946494443,7.89241654,167.13,167.09,84.70584648]
[1739946494640,7.89241654,167.13,167.09,78.72114648]
[1739946495761,7.89241654,167.13,167.09,0.03]
[1739946496556,7.89241654,167.14,167.09,0.03]
[1739946499467,0.063,167.15,167.09,0.03]
[1739946499771,7.89241654,167.14,167.09,0.03]
[1739946506981,7.95541654,167.14,167.09,0.03]
[1739946507781,7.89241654,167.1,167.09,0.03]
[1739946510884,5.9839,167.12,167.09,0.03]
[1739946511063,7.89241654,167.11,167.09,0.03]
[1739946512649,13.87651654,167.11,167.09,0.03]
[1739946513189,7.89241654,167.1,167.09,0.03]
[1739946515402,7.89241654,167.11,167.09,0.03]
[1739946517197,87.283,167.14,167.09,0.03]
[1739946517198,7.89241654,167.13,167.09,0.03]
[1739946518596,90.65541654,167.14,167.09,0.03]
[1739946518762,0.063,167.1,167.09,7.92241654]
[1739946521092,0.063,167.1,167.09,13.90711654]
[1739946522507,0.063,167.1,167.09,92.59826302]
[1739946523495,0.063,167.1,167.09,95.5410625]
[1739946526982,0.063,167.14,167.12,21.5806]
[1739946527169,0.063,167.14,167.13,7.89241654]
[1739946527671,0.0001,167.14,167.13,7.89241654]
[1739946528286,0.0001,167.14,167.13,86.58356302]
[1739946528874,0.0001,167.14,167.13,92.56686302]
[1739946529284,0.0001,167.14,167.12,27.5643]
[1739946529495,0.0001,167.14,167.11,5.984]
[1739946530320,0.0001,167.14,167.13,20.0]
[1739946534608,0.0001,167.14,167.12,5.9836]
[1739946537207,0.0001,167.14,167.12,13.87601654]
[1739946537401,0.0001,167.14,167.13,7.89241654]
[1739946538828,0.0001,167.14,167.13,33.87571654]
[1739946540327,0.0001,167.14,167.13,250.86686302]
[1739946540509,0.0001,167.14,167.13,297.37977771]
[1739946540823,0.0001,167.14,167.13,265.81011155]
[1739946542130,0.0001,167.14,167.13,283.39277771]
[1739946542832,0.063,167.16,167.15,1.9999959]
[1739946542996,0.0001,167.19,167.18,28.31726097]
[1739946543224,9.40319275,167.28,167.23,20.0]
[1739946543442,9.46619275,167.29,167.25,7.89241654]
[1739946543733,9.46619275,167.29,167.26,7.89241654]
[1739946545299,9.46619275,167.29,167.26,92.56216302]
[1739946545506,0.063,167.29,167.26,92.56216302]
[1739946546335,0.063,167.29,167.27,7.89241654]
[1739946546519,0.063,167.29,167.27,86.58356302]
[1739946547034,0.063,167.29,167.27,92.56176302]
[1739946562837,0.063,167.29,167.28,7.89241654]
[1739946563072,0.063,167.29,167.28,86.58356302]
[1739946563850,0.0001,167.29,167.28,86.58356302]
[1739946564054,0.0001,167.3,167.29,1.0]
[1739946564227,0.0001,167.3,167.29,8.89241654]
[1739946564552,0.0001,167.3,167.29,7.89241654]
[1739946565456,0.0001,167.3,167.29,13.87001654]
[1739946565674,0.0001,167.3,167.29,28.17807444]
[1739946565949,0.063,167.32,167.31,27.89241654]
[1739946566151,0.063,167.32,167.31,245.77968011]
[1739946566335,0.063,167.32,167.31,244.88356302]
[1739946568155,0.063,167.33,167.31,264.27231155]
[1739946568357,0.063,167.33,167.32,8.78853128]
[1739946569461,0.063,167.33,167.32,14.76503128]
[1739946570136,0.063,167.33,167.32,231.75617776]
[1739946570338,0.063,167.33,167.32,230.86006302]
[1739946570535,0.0001,167.33,167.32,245.27191155]
[1739946570932,0.0001,167.36,167.34,41.30426507]
[1739946571132,0.0001,167.36,167.35,7.89241654]
[1739946571341,0.0001,167.36,167.35,13.86791654]
[1739946576075,1.595,167.49,167.38,14.41184443]
[1739946576377,0.063,167.5,167.45,7.89241654]
[1739946577564,0.063,167.5,167.45,13.86431654]
[1739946578265,7.95541654,167.5,167.45,5.9719]
[1739946578645,0.063,167.5,167.45,13.86431654]
[1739946581881,7.95541654,167.5,167.45,13.86431654]
[1739946582374,0.063,167.5,167.45,13.86431654]
[1739946582570,0.063,167.5,167.45,92.55546302]
[1739946585369,0.063,167.5,167.45,230.85546302]
[1739946585677,5.643e-05,167.46,167.45,105.96731155]
[1739946585868,5.643e-05,167.46,167.45,107.86261622]
[1739946586172,5.643e-05,167.46,167.45,112.36261622]
[1739946586971,5.643e-05,167.46,167.45,113.36261622]
[1739946589682,5.643e-05,167.5,167.49,20.0]
[1739946589862,5.643e-05,167.5,167.49,258.29541155]
[1739946590071,5.643e-05,167.5,167.49,244.88356302]
[1739946591383,5.643e-05,167.5,167.49,250.85406302]
[1739946593487,5.643e-05,167.5,167.49,253.83959063]
[1739946593783,5.643e-05,167.5,167.49,115.53959063]
[1739946599696,5.643e-05,167.5,167.49,78.69114648]
[1739946599889,7.89247297,167.5,167.45,78.69114648]
[1739946600065,7.89241654,167.48,167.45,78.69114648]
[1739946600266,7.89241654,167.49,167.45,78.69114648]
[1739946600667,7.89241654,167.47,167.4,86.58356302]
[1739946600873,1.65115643,167.5,167.4,92.55706302]
[1739946601070,7.89241654,167.49,167.43,7.89241654]
[1739946601274,7.89241654,167.49,167.42,7.89241654]
[1739946601475,7.89241654,167.46,167.4,95.48935241]
[1739946601672,7.89241654,167.47,167.41,7.89241654]
[1739946601995,6.0449,167.48,167.43,7.89241654]
[1739946602193,9.54357297,167.5,167.43,7.89241654]
[1739946602693,7.89241654,167.48,167.42,7.89241654]
[1739946602876,7.92241654,167.46,167.4,92.62006302]
[1739946603084,7.89241654,167.45,167.4,84.72764648]
[1739946604396,0.03,167.46,167.4,92.62006302]
[1739946604569,0.03,167.46,167.41,7.89241654]
[1739946604766,0.03,167.46,167.42,7.89241654]
[1739946605301,0.03,167.46,167.43,7.89241654]
[1739946605818,0.03,167.46,167.43,13.86491654]